[Event "FIDE WSTC Open 65 2025"]
[Site "Prague"]
[Date "2025.02.18"]
[Round "2.25"]
[White "Birnboim, Nathan"]
[Black "Primbetov, Marat"]
[Result "1/2-1/2"]
[Annotator "ChessBase"]
[ECO "B56"]
[WhiteElo "2313"]
[BlackElo "2103"]
[PlyCount "69"]
[EventDate "2025.02.17"]
[EventType "team-tourn"]
[EventCountry "CZE"]
[SourceTitle "playchess.com"]
[Source "ChessBase"]
[SourceQuality "1"]
[TimeControl "40/5400+30:1800+30"]

1. e4 {[%emt 0:00:05]} c5 {[%emt 0:00:00]} 2. Nf3 {[%emt 0:00:05]} d6 {[%emt 0:01:22]} 3. Nc3 {[%emt 0:00:07]} Nc6 {[%emt 0:00:24]} 4. Bb5 {[%emt 0:00:16]} Bd7 {[%emt 0:00:36]} 5. Bxc6 {[%emt 0:00:25]} Bxc6 {[%emt 0:00:19]} 6. d4 {[%emt 0:00:21]} cxd4 {[%emt 0:01:49]} 7. Nxd4 {[%emt 0:00:06]} Nf6 {[%emt 0:02:35]} 8. Nxc6 {[%emt 0:01:51]} bxc6 {[%emt 0:00:02]} 9. O-O {[%emt 0:03:35]} e6 {[%emt 0:03:23]} 10. Bf4 {[%emt 0:05:34]} d5 {[%emt 0:02:29]} 11. Qf3 {[%emt 0:11:06]} Be7 {[%emt 0:26:26]} 12. Rad1 {[%emt 0:04:42]} O-O {[%emt 0:01:00]} 13. Rfe1 {[%emt 0:12:03]} Qb6 {[%emt 0:03:32]} 14. e5 {[%emt 0:22:32]} Nd7 {[%emt 0:00:04]} 15. b3 {[%emt 0:01:31]} Rfd8 {[%emt 0:06:23]} 16. Qg3 {[%emt 0:05:15]} Nf8 {[%emt 0:09:12]} 17. h4 {[%emt 0:04:04]} Ng6 {[%emt 0:01:49]} 18. Bg5 {[%emt 0:06:59]} Bxg5 {[%emt 0:02:52]} 19. hxg5 {[%emt 0:02:00]} Qb4 {[%emt 0:05:08]} 20. Na4 {[%emt 0:00:45]} c5 {[%emt 0:01:44]} 21. Qe3 {[%emt 0:03:46]} Rac8 {[%emt 0:00:49]} 22. g3 {[%emt 0:00:38]} Ne7 {[%emt 0:01:01]} 23. c3 {[%emt 0:03:22]} Qg4 {[%emt 0:02:45]} 24. Rd2 {[%emt 0:04:24]} d4 {[%emt 0:11:53]} 25. cxd4 {[%emt 0:00:48]} Rxd4 {[%emt 0:04:02]} 26. Rxd4 {[%emt 0:03:31]} cxd4 {[%emt 0:00:50]} 27. Qe4 {[%emt 0:00:43]} Qxe4 {[%emt 0:04:26]} 28. Rxe4 {[%emt 0:00:03]} Nf5 {[%emt 0:00:04]} 29. Re2 {[%emt 0:01:22]} h5 {[%emt 0:02:17]} 30. gxh6 {[%emt 0:00:46]} gxh6 {[%emt 0:00:18]} 31. Kg2 {[%emt 0:00:53]} d3 {[%emt 0:02:13]} 32. Rd2 {[%emt 0:00:22]} Rc2 {[%emt 0:00:12]} 33. Rxd3 {[%emt 0:00:07]} Rxa2 {[%emt 0:00:10]} 34. Kf3 {[%emt 0:01:19]} Kg7 {[%emt 0:01:05]} 35. Nc5 {[%emt 0:01:02]} 1/2-1/2

[Event "FIDE WSTC Open 65 2025"]
[Site "Prague"]
[Date "2025.02.18"]
[Round "2.26"]
[White "Nasybullin, Vladislav"]
[Black "Maryasin, Boris"]
[Result "0-1"]
[Annotator "ChessBase"]
[ECO "A37"]
[WhiteElo "2339"]
[BlackElo "2218"]
[PlyCount "96"]
[EventDate "2025.02.17"]
[EventType "team-tourn"]
[EventCountry "CZE"]
[SourceTitle "playchess.com"]
[Source "ChessBase"]
[SourceQuality "1"]
[TimeControl "40/5400+30:1800+30"]

1. c4 {[%emt 0:00:09]} c5 {[%emt 0:00:25]} 2. Nc3 {[%emt 0:00:16]} Nc6 {[%emt 0:00:51]} 3. g3 {[%emt 0:00:29]} g6 {[%emt 0:00:14]} 4. Bg2 {[%emt 0:00:10]} Bg7 {[%emt 0:00:10]} 5. Nf3 {[%emt 0:00:14]} d6 {[%emt 0:00:26]} 6. O-O {[%emt 0:00:14]} Nh6 {[%emt 0:00:57]} 7. d3 {[%emt 0:01:07]} Nf5 {[%emt 0:00:35]} 8. Bd2 {[%emt 0:01:07]} O-O {[%emt 0:00:53]} 9. Rb1 {[%emt 0:00:30]} Bd7 {[%emt 0:03:57]} 10. a3 {[%emt 0:00:47]} a5 {[%emt 0:00:30]} 11. e3 {[%emt 0:01:34]} Rb8 {[%emt 0:04:11]} 12. h3 {[%emt 0:02:25]} Na7 {[%emt 0:03:28]} 13. g4 {[%emt 0:06:22]} Nh6 {[%emt 0:00:16]} 14. e4 {[%emt 0:00:10]} f6 {[%emt 0:03:55]} 15. b4 {[%emt 0:00:30]} axb4 {[%emt 0:02:17]} 16. axb4 {[%emt 0:00:25]} b5 {[%emt 0:00:33]} 17. bxc5 {[%emt 0:02:55]} dxc5 {[%emt 0:03:52]} 18. Bf4 {[%emt 0:04:17]} Rb7 {[%emt 0:02:54]} 19. Qc1 {[%emt 0:03:25]} Nf7 {[%emt 0:00:44]} 20. cxb5 {[%emt 0:00:40]} Be6 {[%emt 0:13:17]} 21. Rd1 {[%emt 0:02:31]} Qa5 {[%emt 0:01:11]} 22. b6 {[%emt 0:04:17]} Nc6 {[%emt 0:03:32]} 23. Rb5 {[%emt 0:02:19]} Qa6 {[%emt 0:00:10]} 24. Rxc5 {[%emt 0:02:29]} Rxb6 {[%emt 0:00:28]} 25. d4 {[%emt 0:00:19]} Bb3 {[%emt 0:00:38]} 26. Bf1 {[%emt 0:04:42]} Qb7 {[%emt 0:01:42]} 27. Rd2 {[%emt 0:03:42]} e5 {[%emt 0:03:01]} 28. Be3 {[%emt 0:05:00]} exd4 {[%emt 0:01:28]} 29. Nxd4 {[%emt 0:00:00]} Nxd4 {[%emt 0:01:11]} 30. Rxd4 {[%emt 0:00:00]} f5 {[%emt 0:02:23]} 31. exf5 {[%emt 0:02:00]} gxf5 {[%emt 0:04:33]} 32. Rxf5 {[%emt 0:02:45]} Be6 {[%emt 0:00:57]} 33. Rc5 {[%emt 0:03:02]} Ne5 {[%emt 0:02:10]} 34. Bg2 {[%emt 0:00:38]} Nf3+ {[%emt 0:01:07]} 35. Kh1 {[%emt 0:04:21]} Qb8 {[%emt 0:14:39]} 36. Bxf3 {[%emt 0:10:11]} Rxf3 {[%emt 0:00:19]} 37. Rf4 {[%emt 0:04:46]} Rxh3+ {[%emt 0:03:18]} 38. Kg2 {[%emt 0:00:26]} Rh4 {[%emt 0:00:25]} 39. Rg5 {[%emt 0:00:27]} Qb7+ {[%emt 0:02:04]} 40. Ne4 {[%emt 0:01:42]} Rb1 {[%emt 0:09:03]} 41. Qc5 {[%emt 0:30:44]} h6 {[%emt 0:31:46]} 42. Qf8+ {[%emt 0:04:11]} Kh7 {[%emt 0:00:31]} 43. Rxg7+ {[%emt 0:02:10]} Qxg7 {[%emt 0:00:14]} 44. Nf6+ {[%emt 0:02:30]} Kg6 {[%emt 0:00:14]} 45. Qd6 {[%emt 0:03:07]} Qb7+ {[%emt 0:02:53]} 46. Ne4 {[%emt 0:00:11]} Rg1+ {[%emt 0:02:06]} 47. Kf3 {[%emt 0:01:03]} Rh3+ {[%emt 0:00:20]} 48. Ke2 {[%emt 0:00:14]} Qb5+ {[%emt 0:00:25]} 0-1

[Event "FIDE WSTC Open 65 2025"]
[Site "Prague"]
[Date "2025.02.18"]
[Round "2.27"]
[White "Lederman, Leon"]
[Black "Baimurzin, Aitkazy"]
[Result "1-0"]
[Annotator "ChessBase"]
[ECO "B42"]
[WhiteElo "2198"]
[BlackElo "1997"]
[PlyCount "120"]
[EventDate "2025.02.17"]
[EventType "team-tourn"]
[EventCountry "CZE"]
[SourceTitle "playchess.com"]
[Source "ChessBase"]
[SourceQuality "1"]
[TimeControl "40/5400+30:1800+30"]

1. e4 {[%emt 0:00:03]} c5 {[%emt 0:00:23]} 2. Nf3 {[%emt 0:00:07]} e6 {[%emt 0:00:20]} 3. d4 {[%emt 0:00:06]} cxd4 {[%emt 0:00:12]} 4. Nxd4 {[%emt 0:00:02]} a6 {[%emt 0:00:22]} 5. Bd3 {[%emt 0:00:05]} d6 {[%emt 0:01:39]} 6. O-O {[%emt 0:00:15]} Nf6 {[%emt 0:00:34]} 7. c4 {[%emt 0:00:07]} b6 {[%emt 0:00:42]} 8. Nc3 {[%emt 0:00:11]} Bb7 {[%emt 0:00:10]} 9. Be3 {[%emt 0:00:14]} Nbd7 {[%emt 0:00:29]} 10. f3 {[%emt 0:00:24]} Rc8 {[%emt 0:03:46]} 11. Rc1 {[%emt 0:01:04]} Be7 {[%emt 0:00:29]} 12. b3 {[%emt 0:01:05]} O-O {[%emt 0:03:04]} 13. Qe1 {[%emt 0:00:20]} Kh8 {[%emt 0:05:28]} 14. h3 {[%emt 0:04:13]} Rg8 {[%emt 0:07:50]} 15. Qd2 {[%emt 0:01:55]} Qc7 {[%emt 0:12:54]} 16. Be2 {[%emt 0:10:40]} h6 {[%emt 0:06:13]} 17. a3 {[%emt 0:04:43]} Rcd8 {[%emt 0:04:59]} 18. b4 {[%emt 0:00:48]} Qb8 {[%emt 0:02:12]} 19. Qa2 {[%emt 0:05:06]} Nh5 {[%emt 0:04:53]} 20. Qd2 {[%emt 0:08:27]} Nhf6 {[%emt 0:03:05]} 21. Bd3 {[%emt 0:02:52]} Ne5 {[%emt 0:05:52]} 22. Rfe1 {[%emt 0:05:13]} Nxd3 {[%emt 0:01:32]} 23. Qxd3 {[%emt 0:00:05]} Rge8 {[%emt 0:02:50]} 24. Na4 {[%emt 0:12:32]} Nd7 {[%emt 0:06:42]} 25. Nb3 {[%emt 0:01:05]} Ba8 {[%emt 0:02:11]} 26. Qe2 {[%emt 0:05:42]} Bc6 {[%emt 0:12:27]} 27. Nc3 {[%emt 0:02:21]} Rc8 {[%emt 0:03:34]} 28. Red1 {[%emt 0:02:51]} Ne5 {[%emt 0:04:56]} 29. Nd2 {[%emt 0:01:46]} Ba8 {[%emt 0:00:00]} 30. f4 {[%emt 0:00:14]} Nd7 {[%emt 0:00:51]} 31. Nf3 {[%emt 0:02:10]} Red8 {[%emt 0:01:26]} 32. Nd4 {[%emt 0:02:42]} Bf6 {[%emt 0:01:53]} 33. f5 {[%emt 0:04:13]} exf5 {[%emt 0:00:38]} 34. Nxf5 {[%emt 0:01:05]} Ne5 {[%emt 0:01:22]} 35. Nd5 {[%emt 0:02:20]} Bxd5 {[%emt 0:00:45]} 36. cxd5 {[%emt 0:00:11]} b5 {[%emt 0:00:23]} 37. Bd4 {[%emt 0:01:00]} Kh7 {[%emt 0:00:47]} 38. Qh5 {[%emt 0:04:45]} Rd7 {[%emt 0:00:58]} 39. Be3 {[%emt 0:00:53]} Rxc1 {[%emt 0:00:27]} 40. Rxc1 {[%emt 0:00:08]} Ng6 {[%emt 0:00:20]} 41. Rc6 {[%emt 0:40:39]} Be5 {[%emt 0:09:38]} 42. Qd1 {[%emt 0:00:00]} Qa8 {[%emt 0:07:18]} 43. Qc1 {[%emt 0:00:00]} Rd8 {[%emt 0:02:04]} 44. Rc7 {[%emt 0:03:32]} Kg8 {[%emt 0:01:49]} 45. Qc6 {[%emt 0:00:00]} Nf4 {[%emt 0:02:50]} 46. Ra7 {[%emt 0:00:00]} Qb8 {[%emt 0:01:01]} 47. Qxa6 {[%emt 0:03:19]} Rf8 {[%emt 0:02:40]} 48. Rb7 {[%emt 0:01:42]} Qd8 {[%emt 0:02:17]} 49. Ne7+ {[%emt 0:00:00]} Kh7 {[%emt 0:02:30]} 50. Qxb5 {[%emt 0:00:00]} Ng6 {[%emt 0:02:10]} 51. Nf5 {[%emt 0:00:00]} Qf6 {[%emt 0:00:21]} 52. Rb8 {[%emt 0:00:00]} Rxb8 {[%emt 0:01:17]} 53. Qxb8 {[%emt 0:00:00]} Nf4 {[%emt 0:00:19]} 54. Qb5 {[%emt 0:00:00]} Qg5 {[%emt 0:01:02]} 55. Bxf4 {[%emt 0:00:00]} Qxf4 {[%emt 0:00:15]} 56. Qd3 {[%emt 0:00:00]} Qc1+ {[%emt 0:00:48]} 57. Kf2 {[%emt 0:00:00]} g6 {[%emt 0:00:25]} 58. Ne3 {[%emt 0:00:00]} h5 {[%emt 0:03:43]} 59. Nc4 {[%emt 0:00:00]} Bh2 {[%emt 0:00:00]} 60. Nd2 {[%emt 0:00:00]} Qg1+ {[%emt 0:00:44]} 1-0

[Event "FIDE WSTC Open 65 2025"]
[Site "Prague"]
[Date "2025.02.18"]
[Round "2.28"]
[White "Blokhin, Alexey"]
[Black "Gal, Moshe"]
[Result "1/2-1/2"]
[Annotator "NA"]
[ECO "B37"]
[WhiteElo "1829"]
[BlackElo "2059"]
[PlyCount "120"]
[EventDate "2025.02.17"]
[EventType "team-tourn"]
[EventCountry "CZE"]
[SourceTitle "playchess.com"]
[Source "ChessBase"]
[SourceQuality "1"]
[TimeControl "40/5400+30:1800+30"]

1. e4 {[%emt 0:00:04]} c5 {[%emt 0:00:37]} 2. Nf3 {[%emt 0:00:24]} g6 {[%emt 0:00:15]} 3. c4 {[%emt 0:00:49]} Bg7 {[%emt 0:00:15]} 4. d4 {[%emt 0:00:32]} cxd4 {[%emt 0:00:07]} 5. Nxd4 {[%emt 0:00:13]} Nc6 {[%emt 0:00:23]} 6. Nb3 {[%emt 0:07:08]} d6 {[%emt 0:01:45]} 7. Be2 {[%emt 0:00:25]} f5 {[%emt 0:12:10]} 8. N1d2 {[%emt 0:07:21]} a5 {[%emt 0:04:25]} 9. a4 {[%emt 0:01:18]} Nh6 {[%emt 0:05:54]} 10. O-O {[%emt 0:02:17]} O-O {[%emt 0:02:51]} 11. exf5 {[%emt 0:00:50]} Nxf5 {[%emt 0:01:36]} 12. Nf3 {[%emt 0:01:22]} Qb6 {[%emt 0:05:09]} 13. Ra3 {[%emt 0:04:33]} Bd7 {[%emt 0:08:17]} 14. c5 {[%emt 0:03:51]} Qc7 {[%emt 0:00:03]} 15. cxd6 {[%emt 0:00:16]} Qxd6 {[%emt 0:02:02]} 16. Nc5 {[%emt 0:05:24]} Qxc5 {[%emt 0:02:37]} 17. Qxd7 {[%emt 0:00:09]} Nfd4 {[%emt 0:02:12]} 18. Nxd4 {[%emt 0:04:31]} Nxd4 {[%emt 0:06:41]} 19. Bb5 {[%emt 0:01:24]} Rad8 {[%emt 0:04:09]} 20. Qxb7 {[%emt 0:01:11]} Rb8 {[%emt 0:01:48]} 21. Qe4 {[%emt 0:01:27]} Nxb5 {[%emt 0:02:50]} 22. axb5 {[%emt 0:00:59]} Rxb5 {[%emt 0:02:14]} 23. Rh3 {[%emt 0:16:45]} Qf5 {[%emt 0:10:50]} 24. Qc4+ {[%emt 0:05:24]} e6 {[%emt 0:01:38]} 25. Rf3 {[%emt 0:01:06]} Qd5 {[%emt 0:00:45]} 26. Rxf8+ {[%emt 0:00:12]} Bxf8 {[%emt 0:00:24]} 27. Qc8 {[%emt 0:00:26]} Rc5 {[%emt 0:02:09]} 28. Qe8 {[%emt 0:01:23]} Qc6 {[%emt 0:00:19]} 29. Qxc6 {[%emt 0:01:23]} Rxc6 {[%emt 0:00:02]} 30. g3 {[%emt 0:01:08]} Rc2 {[%emt 0:00:27]} 31. Kg2 {[%emt 0:02:55]} Bc5 {[%emt 0:00:37]} 32. Kf3 {[%emt 0:00:10]} Kf7 {[%emt 0:02:04]} 33. Ke4 {[%emt 0:02:55]} Rxf2 {[%emt 0:01:13]} 34. Rxf2+ {[%emt 0:00:15]} Bxf2 {[%emt 0:00:01]} 35. b3 {[%emt 0:00:26]} Be1 {[%emt 0:04:36]} 36. Bb2 {[%emt 0:00:25]} Ke7 {[%emt 0:00:51]} 37. Ke5 {[%emt 0:01:45]} Bb4 {[%emt 0:00:08]} 38. Ke4 {[%emt 0:00:58]} Kd6 {[%emt 0:02:40]} 39. g4 {[%emt 0:01:10]} h5 {[%emt 0:01:48]} 40. h3 {[%emt 0:00:36]} hxg4 {[%emt 0:01:16]} 41. hxg4 {[%emt 0:30:06]} Bc5 {[%emt 0:34:13]} 42. Be5+ {[%emt 0:03:06]} Kd7 {[%emt 0:03:19]} 43. Bc3 {[%emt 0:00:15]} Bb6 {[%emt 0:00:15]} 44. Ke5 {[%emt 0:00:59]} Ke7 {[%emt 0:00:13]} 45. Ke4 {[%emt 0:00:42]} Bc7 {[%emt 0:02:45]} 46. Bd4 {[%emt 0:01:45]} Kd7 {[%emt 0:00:00]} 47. Bc3 {[%emt 0:00:00]} Kc6 {[%emt 0:00:00]} 48. Kd4 {[%emt 0:00:00]} Kb5 {[%emt 0:00:00]} 49. Ke4 {[%emt 0:00:00]} Kc5 {[%emt 0:00:00]} 50. Bd2 {[%emt 0:00:00]} Kb5 {[%emt 0:00:00]} 51. Bc3 {[%emt 0:00:00]} Bd6 {[%emt 0:00:00]} 52. Kd4 {[%emt 0:00:00]} Bb4 {[%emt 0:00:00]} 53. Bb2 {[%emt 0:00:00]} Bf8 {[%emt 0:00:00]} 54. Kd3 {[%emt 0:00:00]} Kb4 {[%emt 0:00:00]} 55. Bc3+ {[%emt 0:00:00]} Kb5 {[%emt 0:00:00]} 56. Ke4 {[%emt 0:00:00]} Bd6 {[%emt 0:00:00]} 57. Kd4 {[%emt 0:00:00]} Bb4 {[%emt 0:00:00]} 58. Bb2 {[%emt 0:00:00]} Bf8 {[%emt 0:00:44]} 59. Kd3 {[%emt 0:00:00]} Kb4 {[%emt 0:01:52]} 60. Bc3+ {[%emt 0:00:00]} Kb5 1/2-1/2

[Event "FIDE WSTC Open 65 2025"]
[Site "Prague"]
[Date "2025.02.18"]
[Round "2.29"]
[White "Vinke, Dietmar"]
[Black "Kiss, Attila"]
[Result "1/2-1/2"]
[Annotator "ChessBase"]
[ECO "D36"]
[WhiteElo "2087"]
[BlackElo "2276"]
[PlyCount "68"]
[EventDate "2025.02.17"]
[EventType "team-tourn"]
[EventCountry "CZE"]
[SourceTitle "playchess.com"]
[Source "ChessBase"]
[SourceQuality "1"]
[TimeControl "40/5400+30:1800+30"]

1. d4 {[%emt 0:00:03]} d5 {[%emt 0:00:28]} 2. c4 {[%emt 0:00:17]} e6 {[%emt 0:00:14]} 3. Nc3 {[%emt 0:00:10]} Nf6 {[%emt 0:00:26]} 4. cxd5 {[%emt 0:00:09]} exd5 {[%emt 0:00:09]} 5. Bg5 {[%emt 0:00:10]} Be7 {[%emt 0:01:59]} 6. e3 {[%emt 0:00:10]} c6 {[%emt 0:00:17]} 7. Qc2 {[%emt 0:00:57]} Nbd7 {[%emt 0:00:47]} 8. Bd3 {[%emt 0:00:10]} Nh5 {[%emt 0:00:54]} 9. Bxe7 {[%emt 0:00:54]} Qxe7 {[%emt 0:00:03]} 10. Nge2 {[%emt 0:03:54]} g6 {[%emt 0:00:58]} 11. O-O {[%emt 0:00:20]} O-O {[%emt 0:00:44]} 12. a3 {[%emt 0:04:05]} a5 {[%emt 0:02:06]} 13. Na4 {[%emt 0:02:24]} Ng7 {[%emt 0:03:17]} 14. Rac1 {[%emt 0:25:20]} Ne6 {[%emt 0:01:32]} 15. Nc5 {[%emt 0:20:57]} Ndxc5 {[%emt 0:12:47]} 16. dxc5 {[%emt 0:00:02]} Qf6 {[%emt 0:00:17]} 17. Qc3 {[%emt 0:00:55]} Qxc3 {[%emt 0:05:01]} 18. Rxc3 {[%emt 0:00:07]} a4 {[%emt 0:01:43]} 19. Nd4 {[%emt 0:00:42]} Ra5 {[%emt 0:01:15]} 20. Rfc1 {[%emt 0:10:11]} Bd7 {[%emt 0:00:48]} 21. f4 {[%emt 0:00:14]} Rb8 {[%emt 0:01:59]} 22. R1c2 {[%emt 0:10:49]} b6 {[%emt 0:17:11]} 23. cxb6 {[%emt 0:00:08]} Nxd4 {[%emt 0:01:59]} 24. exd4 {[%emt 0:00:02]} Rxb6 {[%emt 0:00:06]} 25. h3 {[%emt 0:06:05]} Ra7 {[%emt 0:02:48]} 26. Rd2 {[%emt 0:01:04]} Rab7 {[%emt 0:00:46]} 27. Rcc2 {[%emt 0:00:08]} h5 {[%emt 0:01:36]} 28. Kf2 {[%emt 0:00:06]} Kf8 {[%emt 0:02:06]} 29. Re2 {[%emt 0:03:50]} Rb3 {[%emt 0:04:26]} 30. Rcd2 {[%emt 0:00:01]} Rc7 {[%emt 0:02:09]} 31. Bb1 {[%emt 0:01:24]} Rcb7 {[%emt 0:04:20]} 32. Bd3 {[%emt 0:00:21]} Rc7 {[%emt 0:05:22]} 33. Bb1 {[%emt 0:00:15]} Rcb7 {[%emt 0:04:28]} 34. Bd3 {[%emt 0:00:11]} Rc7 {[%emt 0:03:25]} 1/2-1/2

[Event "FIDE WSTC Open 65 2025"]
[Site "Prague"]
[Date "2025.02.18"]
[Round "2.30"]
[White "Nemeth, Zoltan"]
[Black "Salmenkivi, Eero"]
[Result "1-0"]
[Annotator "ChessBase"]
[ECO "D34"]
[WhiteElo "2192"]
[BlackElo "2048"]
[PlyCount "71"]
[EventDate "2025.02.17"]
[EventType "team-tourn"]
[EventCountry "CZE"]
[SourceTitle "playchess.com"]
[Source "ChessBase"]
[SourceQuality "1"]
[TimeControl "40/5400+30:1800+30"]

1. Nf3 {[%emt 0:00:05]} d5 {[%emt 0:00:08]} 2. g3 {[%emt 0:00:11]} c5 {[%emt 0:00:05]} 3. Bg2 {[%emt 0:00:10]} Nc6 {[%emt 0:00:07]} 4. d4 {[%emt 0:00:05]} e6 {[%emt 0:00:16]} 5. O-O {[%emt 0:00:07]} Nf6 {[%emt 0:00:04]} 6. c4 {[%emt 0:00:50]} Be7 {[%emt 0:00:09]} 7. cxd5 {[%emt 0:05:50]} exd5 {[%emt 0:00:10]} 8. Nc3 {[%emt 0:00:29]} O-O {[%emt 0:00:09]} 9. dxc5 {[%emt 0:00:20]} Bxc5 {[%emt 0:00:15]} 10. Na4 {[%emt 0:00:34]} Be7 {[%emt 0:00:41]} 11. Be3 {[%emt 0:00:06]} Ne4 {[%emt 0:03:00]} 12. Rc1 {[%emt 0:04:36]} Re8 {[%emt 0:04:52]} 13. a3 {[%emt 0:11:32]} Be6 {[%emt 0:16:14]} 14. Nc5 {[%emt 0:02:35]} Nxc5 {[%emt 0:01:49]} 15. Bxc5 {[%emt 0:00:04]} Bf6 {[%emt 0:00:13]} 16. Nd4 {[%emt 0:08:28]} Bg4 {[%emt 0:02:11]} 17. Nxc6 {[%emt 0:05:15]} bxc6 {[%emt 0:00:08]} 18. Rc2 {[%emt 0:10:59]} Qa5 {[%emt 0:05:23]} 19. Be3 {[%emt 0:12:42]} Qb5 {[%emt 0:17:28]} 20. b4 {[%emt 0:04:45]} Qa6 {[%emt 0:05:05]} 21. Qc1 {[%emt 0:03:51]} Re6 {[%emt 0:01:27]} 22. Re1 {[%emt 0:06:29]} Rd8 {[%emt 0:09:05]} 23. Bg5 {[%emt 0:01:56]} Bxe2 {[%emt 0:10:36]} 24. Bxf6 {[%emt 0:00:11]} gxf6 {[%emt 0:00:09]} 25. Bh3 {[%emt 0:01:10]} Bd3 {[%emt 0:03:25]} 26. Bxe6 {[%emt 0:06:40]} Bxc2 {[%emt 0:00:30]} 27. Qxc2 {[%emt 0:02:46]} fxe6 {[%emt 0:01:12]} 28. Rxe6 {[%emt 0:00:04]} Qc4 {[%emt 0:03:39]} 29. Qxc4 {[%emt 0:01:07]} dxc4 {[%emt 0:00:03]} 30. Rxc6 {[%emt 0:00:12]} Rd3 {[%emt 0:02:07]} 31. Rc8+ {[%emt 0:02:33]} Kf7 {[%emt 0:01:00]} 32. Rc7+ {[%emt 0:00:10]} Ke6 {[%emt 0:00:09]} 33. Rxa7 {[%emt 0:00:15]} Kd5 {[%emt 0:09:59]} 34. b5 {[%emt 0:03:22]} Rd1+ {[%emt 0:00:28]} 35. Kg2 {[%emt 0:00:04]} c3 {[%emt 0:00:06]} 36. Rd7+ {[%emt 0:00:06]} 1-0

[Event "FIDE WSTC Open 65 2025"]
[Site "Prague"]
[Date "2025.02.18"]
[Round "2.31"]
[White "Uimonen, Matti"]
[Black "Hardicsay, Peter"]
[Result "1/2-1/2"]
[Annotator "ChessBase"]
[ECO "E84"]
[WhiteElo "2056"]
[BlackElo "2164"]
[PlyCount "33"]
[EventDate "2025.02.17"]
[EventType "team-tourn"]
[EventCountry "CZE"]
[SourceTitle "playchess.com"]
[Source "ChessBase"]
[SourceQuality "1"]
[TimeControl "40/5400+30:1800+30"]

1. d4 {[%emt 0:00:05]} g6 {[%emt 0:00:23]} 2. c4 {[%emt 0:00:12]} d6 {[%emt 0:00:51]} 3. Nc3 {[%emt 0:00:17]} Bg7 {[%emt 0:01:19]} 4. e4 {[%emt 0:00:31]} Nf6 {[%emt 0:02:04]} 5. f3 {[%emt 0:00:24]} O-O {[%emt 0:00:39]} 6. Be3 {[%emt 0:00:11]} Nc6 {[%emt 0:01:47]} 7. Nge2 {[%emt 0:00:34]} a6 {[%emt 0:01:23]} 8. Qd2 {[%emt 0:01:54]} Rb8 {[%emt 0:01:15]} 9. a4 {[%emt 0:02:13]} Re8 {[%emt 0:09:37]} 10. Rb1 {[%emt 0:05:13]} a5 {[%emt 0:09:03]} 11. g3 {[%emt 0:00:31]} Nb4 {[%emt 0:03:54]} 12. Bg2 {[%emt 0:00:58]} c6 {[%emt 0:06:22]} 13. O-O {[%emt 0:00:39]} Ra8 {[%emt 0:02:45]} 14. Rbd1 {[%emt 0:04:17]} Qc7 {[%emt 0:01:27]} 15. b3 {[%emt 0:03:30]} e5 {[%emt 0:06:49]} 16. d5 {[%emt 0:03:00]} c5 {[%emt 0:04:07]} 17. Nb5 {[%emt 0:03:46]} 1/2-1/2

[Event "FIDE WSTC Open 65 2025"]
[Site "Prague"]
[Date "2025.02.18"]
[Round "2.32"]
[White "Dory, Jeno"]
[Black "Nikolaienko, Serhii"]
[Result "1/2-1/2"]
[Annotator "NA"]
[ECO "B06"]
[WhiteElo "2143"]
[BlackElo "1870"]
[PlyCount "95"]
[EventDate "2025.02.17"]
[EventType "team-tourn"]
[EventCountry "CZE"]
[SourceTitle "playchess.com"]
[Source "ChessBase"]
[SourceQuality "1"]
[TimeControl "40/5400+30:1800+30"]

1. e4 {[%emt 0:00:05]} g6 {[%emt 0:00:15]} 2. d4 {[%emt 0:00:21]} Bg7 {[%emt 0:00:12]} 3. Nf3 {[%emt 0:01:14]} e6 {[%emt 0:00:21]} 4. Nc3 {[%emt 0:02:14]} Ne7 {[%emt 0:00:13]} 5. Bf4 {[%emt 0:07:19]} d6 {[%emt 0:01:02]} 6. Qd2 {[%emt 0:01:43]} h6 {[%emt 0:00:22]} 7. h4 {[%emt 0:02:59]} Nd7 {[%emt 0:01:12]} 8. O-O-O {[%emt 0:02:47]} a6 {[%emt 0:01:00]} 9. d5 {[%emt 0:10:44]} e5 {[%emt 0:00:29]} 10. Be3 {[%emt 0:00:12]} b5 {[%emt 0:01:38]} 11. h5 {[%emt 0:01:01]} g5 {[%emt 0:01:01]} 12. Bd3 {[%emt 0:02:04]} f6 {[%emt 0:06:51]} 13. Nh2 {[%emt 0:02:01]} O-O {[%emt 0:01:10]} 14. f3 {[%emt 0:03:59]} Nb6 {[%emt 0:01:40]} 15. g4 {[%emt 0:02:35]} b4 {[%emt 0:03:11]} 16. Ne2 {[%emt 0:01:18]} a5 {[%emt 0:00:28]} 17. Nf1 {[%emt 0:01:08]} Ba6 {[%emt 0:01:30]} 18. Bxa6 {[%emt 0:02:54]} Rxa6 {[%emt 0:02:59]} 19. Qd3 {[%emt 0:02:00]} Qa8 {[%emt 0:02:54]} 20. Kb1 {[%emt 0:01:20]} Qb7 {[%emt 0:01:42]} 21. Nd2 {[%emt 0:02:21]} Rfa8 {[%emt 0:00:21]} 22. Nc4 {[%emt 0:02:21]} Nec8 {[%emt 0:01:03]} 23. Rh2 {[%emt 0:04:24]} Nxc4 {[%emt 0:02:49]} 24. Qxc4 {[%emt 0:00:09]} Na7 {[%emt 0:01:08]} 25. Bxa7 {[%emt 0:01:37]} Qxa7 {[%emt 0:01:20]} 26. Nc1 {[%emt 0:01:20]} Rb8 {[%emt 0:02:01]} 27. Re2 {[%emt 0:02:28]} Bf8 {[%emt 0:02:54]} 28. Nd3 {[%emt 0:01:34]} Kf7 {[%emt 0:02:10]} 29. Rc1 {[%emt 0:03:07]} Rab6 {[%emt 0:03:20]} 30. c3 {[%emt 0:07:01]} b3 {[%emt 0:01:00]} 31. a3 {[%emt 0:01:59]} Ke8 {[%emt 0:01:49]} 32. Ne1 {[%emt 0:00:45]} Kd8 {[%emt 0:01:39]} 33. Ng2 {[%emt 0:01:23]} Qa6 {[%emt 0:01:35]} 34. Qxa6 {[%emt 0:00:56]} Rxa6 {[%emt 0:00:02]} 35. Ne3 {[%emt 0:00:30]} Kc8 {[%emt 0:04:11]} 36. c4 {[%emt 0:01:01]} a4 {[%emt 0:01:10]} 37. Rc3 {[%emt 0:02:08]} Ra5 {[%emt 0:04:38]} 38. Nd1 {[%emt 0:01:31]} Kb7 {[%emt 0:00:40]} 39. Nf2 {[%emt 0:03:43]} Kb6 {[%emt 0:00:45]} 40. Nd3 {[%emt 0:00:32]} Rba8 {[%emt 0:02:24]} 41. Kc1 {[%emt 0:34:07]} Rc8 {[%emt 0:30:27]} 42. Kd2 {[%emt 0:01:04]} Rca8 {[%emt 0:00:30]} 43. Re1 {[%emt 0:00:24]} Rc8 {[%emt 0:01:18]} 44. Rec1 {[%emt 0:00:11]} Rca8 {[%emt 0:01:01]} 45. Ke3 {[%emt 0:15:35]} Rc8 {[%emt 0:01:22]} 46. Nb4 {[%emt 0:00:25]} Rc5 {[%emt 0:00:34]} 47. Nd3 {[%emt 0:00:00]} Ra5 {[%emt 0:00:00]} 48. Nb4 {[%emt 0:01:05]} 1/2-1/2